Cogmind - Beta 13 @@@ ROGUE MODE // 2024.05.01 @ 17:20:16 Player: Bace Troncons Result: Destroyed by as-24484 with Assembled Rifle Performance ------------- Evolutions (0) 0 Regions Visited (2) 400 Robots Destroyed (22) 110 Value Destroyed (535) 535 Prototype IDs (2) 40 Alien Tech Used (0) 0 Bonus (39) 39 TOTAL SCORE: 1124 Bonus ------- Follower Combat Kills 39 Cogmind --------- Core Integrity 0/250 Matter 270/300 Energy 246/250 System Corruption 0% Temperature Cool (2) Movement Walking (190) Ox1 Location -10/Mines Parts ------- > --- POWER (1) -------- Ion Engine > --- PROPULSION (2) --- Aluminum Leg Aluminum Leg > --- UTILITY (2) ------ Large Storage Unit > --- WEAPON (2) ------- Light Assault Rifle Light Cannon > --- INVENTORY (15) --- Light Ion Engine Light Ion Engine Light Treads Aluminum Leg Aluminum Leg Weight Redist. System Signal Interpreter Propulsion Shielding Light Armor Plating Hacking Suite Hacking Suite Light Assault Rifle Datajack Peak State ------------ > --- POWER ------------ Ion Engine > --- PROPULSION ------- Light Treads Light Treads > --- UTILITY ---------- Large Storage Unit Light Armor Plating > --- WEAPON ----------- Light Assault Rifle Light Cannon > --- INVENTORY -------- Light Ion Engine Light Ion Engine Light Treads Aluminum Leg Aluminum Leg Aluminum Leg Aluminum Leg Weight Redist. System Signal Interpreter Propulsion Shielding Light Armor Plating Hacking Suite Hacking Suite Light Assault Rifle Datajack [Rating: 9] Favorites ----------- Power Ion Engine Engine Ion Engine Propulsion Light Treads Treads Light Treads Leg Aluminum Leg Utility Light Armor Plating Storage Small Storage Unit Protection Light Armor Plating Weapon Light Assault Rifle Energy Gun EM Pulse Gun Ballistic Gun Light Assault Rifle Ballistic Cannon Light Cannon Build | -11 -10 -10 ------- Run | Yrd Mat Min Slots Evolved . | . . . Power . | . . . Propulsion . | . . . Utility . | . . . Weapon . | . . . Parts Attached 20 | 6 11 3 Power 4 | 1 2 1 Engine 4 | 1 2 1 Core . | . . . Reactor . | . . . Propulsion 6 | 2 2 2 Treads 4 | 2 2 . Leg 2 | . . 2 Wheel . | . . . Hover . | . . . Flight . | . . . Utility 4 | 1 3 . Device . | . . . Storage 2 | 1 1 . Processor . | . . . Hackware . | . . . Protection 2 | . 2 . Artifact . | . . . Weapon 6 | 2 4 . Energy Gun 3 | 2 1 . Energy Cannon . | . . . Ballistic Gun 2 | . 2 . Ballistic Cannon 1 | . 1 . Launcher . | . . . Special Weapon . | . . . Impact Weapon . | . . . Slashing Weapon . | . . . Piercing Weapon . | . . . Special Melee Weapon . | . . . Unidentified Prototypes . | . . . Parts Lost 4 | . 1 3 Power 1 | . 1 . Propulsion 2 | . . 2 Utility 1 | . . 1 Weapon . | . . . Highest Loss Streak 3 | . 1 3 To Critical Strikes . | . . . Average Slot Usage (%) 97 | . 96 98 Engine 13 | . 13 14 Treads 27 | . 27 26 Storage 14 | . 14 14 Protection 11 | . 11 12 Energy Gun 7 | . 8 . Ballistic Gun 13 | . 13 14 Ballistic Cannon 7 | . 6 14 Naked Turns . | . . . Heaviest Build 32 | 13 32 32 Greatest Support 40 | 40 40 40 Greatest Overweight (x) 1 | . . 1 Average Overweight (x) . | . . . Largest Inventory Capacity 15 | 8 15 15 Average Capacity 11 | 7 10 15 Most Carried 15 | 3 14 15 Average Carried 7 | 2 7 14 Final Capacity 15 | 8 15 15 Final Carried 14 | 3 14 13 Class Distribution -------------------- 100% | Mutant Dominant Class ---------------- Mutant | -10/Materials Mutant | -10/Mines Resources | -11 -10 -10 ----------- Run | Yrd Mat Min Matter Collected 525 | 243 247 35 Remotely . | . . . Salvage Created 764 | . 642 122 Parts 58 | . 50 8 Haulers Intercepted 1 | . 1 . Recyclers Shooed . | . . . Parts Field Recycled . | . . . Retrieved Matter . | . . . Parts Self-Destructed . | . . . Prevented . | . . . Kills | -11 -10 -10 ------- Run | Yrd Mat Min Combat Hostiles Destroyed 17 | . 14 3 Guns 13 | . 13 . Cannons 4 | . 1 3 Classes Destroyed 7 | . 6 1 Hauler 1 | . 1 . Recycler 1 | . 1 . Operator 2 | . 2 . Watcher 1 | . 1 . Swarmer 6 | . 6 . Grunt 10 | . 8 2 Demolisher 1 | . . 1 Best Kill Streak 3 | . 3 2 Combat Bots Only 3 | . 3 2 Max Kills in Single Turn 2 | . 2 1 Gunslinging . | . . . Exploded . | . . . Melee . | . . . Uniques/NPCs Destroyed . | . . . Combat | -11 -10 -10 -------- Run | Yrd Mat Min Hostile Shots Fired 104 | . 78 26 Missed 22 | . 16 6 Damage Taken 1155 | . 662 493 Core 261 | . 97 164 Absorbed by Shields . | . . . Regen/Repaired (Parts) 74 | . 74 . Core Remaining (%) 100 | 100 . . Volleys Fired 65 | . 57 8 Largest 2 | . 2 2 Hottest 80 | . 80 55 Shots Fired 130 | . 114 16 Gun 104 | . 96 8 Cannon 26 | . 18 8 Launcher . | . . . Special . | . . . Kinetic 90 | . 74 16 Thermal 20 | . 20 . Explosive . | . . . Electromagnetic 20 | . 20 . Robot Hit Streak 16 | . 16 3 Robot Miss Streak 4 | . 4 2 Penetration Max . | . . . Secondary Targets . | . . . Shots Hit Robots 89 | . 80 9 Core Hits 40 | . 35 5 Critical Kills . | . . . Critical Parts Destroyed . | . . . Critical Strikes 1 | . 1 . Corrupt 1 | . 1 . Melee Attacks . | . . . Impact . | . . . Slashing . | . . . Piercing . | . . . Sneak Attacks . | . . . Combat Hostiles . | . . . Follow-up Attacks . | . . . Damage Inflicted 1052 | 6 900 146 Guns 750 | . 705 45 Cannons 296 | . 195 101 Explosions . | . . . Melee . | . . . Ramming 6 | 6 . . Kinetic 683 | . 537 146 Thermal 162 | . 162 . Explosive . | . . . Electromagnetic 201 | . 201 . Impact . | . . . Slashing . | . . . Piercing . | . . . Highest Corruption . | . . . Average Corruption . | . . . Corruption Purged . | . . . Corruption Blocked . | . . . Overload Shots . | . . . Overflow Damage . | . . . Projectiles . | . . . Explosions . | . . . Melee . | . . . Knockbacks 3 | . 3 . Impact . | . . . Kinetic 3 | . 3 . Secondary . | . . . Self-Inflicted Damage . | . . . Shots . | . . . Rammed 1 | 1 . . Targets Rammed 1 | 1 . . Kicked . | . . . Crushed . | . . . Highest Temperature 228 | . 228 83 Average Temperature 42 | . 42 38 Received Heat Transfer 270 | . 219 51 Siege Activations . | . . . Robots Corrupted . | . . . Combat Hostiles . | . . . Parts Fried 1 | . 1 . Impact Corruptions . | . . . Robots Melted . | . . . Combat Hostiles . | . . . Parts Melted 2 | . 2 . Heat Transferred 375 | . 375 . Parts Sabotaged . | . . . Parts Stolen . | . . . Parts Stripped . | . . . Power Chain Reactions . | . . . Alert | -11 -10 -10 ------- Run | Yrd Mat Min Peak Influence 192 | . 192 84 Initial 34 | . . 34 Average 71 | . 74 75 Maximum Alert Level . | . . . Low Security (%) 100 | 100 100 100 Level 1 . | . . . Level 2 . | . . . Level 3 . | . . . Level 4 . | . . . Level 5 . | . . . High Security . | . . . Max Security . | . . . Squads Dispatched 4 | . 4 . Investigation 2 | . 2 . Extermination . | . . . Reinforcement 2 | . 2 . Assault . | . . . Garrison . | . . . Intercept . | . . . Searches Triggered . | . . . Construction Impeded . | . . . Haulers Reinforced . | . . . Active Scanning Responses . | . . . Cargo Convoy Interrupts . | . . . Stealth | -11 -10 -10 --------- Run | Yrd Mat Min Distress Signals 2 | . 2 . Communications Jammed . | . . . Distress Signals . | . . . Times Spotted 50 | . 35 15 Peak Tracking Total 12 | . 5 12 Tactical Retreats . | . . . Traps | -11 -10 -10 ------- Run | Yrd Mat Min Traps Triggered 1 | . 1 . Indirectly . | . . . Trap Hack Attempts . | . . . Triggered . | . . . Disarmed . | . . . Reprogrammed . | . . . Reused . | . . . Traps Extracted . | . . . Installed . | . . . Triggered . | . . . Machines | -11 -10 -10 ---------- Run | Yrd Mat Min Machines Disabled . | . . . Max in Single Turn . | . . . Machines Repaired . | . . . Machines Dismantled . | . . . Machines Sabotaged . | . . . Overloaded Fab Kills . | . . . Hacking | -11 -10 -10 --------- Run | Yrd Mat Min Machines Accessed 9 | . 9 . Terminals 6 | . 6 . Fabricators . | . . . Repair Stations 1 | . 1 . Recycling Units 2 | . 2 . Scanalyzers . | . . . Garrison Access . | . . . Total Hacks 28 | . 28 . Successful 9 | . 9 . Failed 19 | . 19 . Catastrophic 4 | . 4 . Database Lockouts . | . . . Manual 7 | . 7 . Terminals 16 | . 16 . Fabricators . | . . . Repair Stations 6 | . 6 . Recycling Units 6 | . 6 . Scanalyzers . | . . . Garrison Access . | . . . Terminal Hacks 3 | . 3 . Prototype ID Bank 2 | . 2 . Emergency Access Points 1 | . 1 . Fabricator Hacks . | . . . Repair Station Hacks 5 | . 5 . Scan Component 3 | . 3 . Repair 2 | . 2 . Recycling Unit Hacks 1 | . 1 . Retrieve Components 1 | . 1 . Scanalyzer . | . . . Garrison Access Hacks . | . . . Unauthorized Hacks . | . . . Terminals . | . . . Fabricators . | . . . Repair Stations . | . . . Recycling Units . | . . . Scanalyzers . | . . . Garrison Access . | . . . Data Cores Recovered . | . . . Used . | . . . Hacking Detections 9 | . 9 . Full Trace Events 1 | . 1 . Feedback Events . | . . . Feedback Blocked . | . . . Robot Schematics Acquired . | . . . Robots Built . | . . . Authchips . | . . . Time . | . . . Total Robot Build Rating . | . . . Part Schematics Acquired . | . . . Parts Built . | . . . Authchips . | . . . Time . | . . . Total Part Build Rating . | . . . Parts Repaired 2 | . 2 . Time 62 | . 62 . Parts Recycled . | . . . Recycled Matter . | . . . Retrieved Matter . | . . . Retrieved Components . | . . . Parts Scanalyzed . | . . . Part Schematics Acquired . | . . . Parts Damaged . | . . . Bothacking | -11 -10 -10 ------------ Run | Yrd Mat Min Used RIF Installer . | . . . Robots Hacked . | . . . Non-combat . | . . . Combat . | . . . Robot Hacks Applied . | . . . Relay Couplers Released . | . . . Fabnet Peak Effective % . | . . . Robots Rewired . | . . . Allies Hacked . | . . . Hacks Repelled . | . . . Allies | -11 -10 -10 -------- Run | Yrd Mat Min Total Allies 3 | . . 3 Largest Group 3 | . . 3 Highest-Rated Group 40 | . . 40 Highest-Rated Ally 16 | . . 16 Total Orders . | . . . Ally Attacks 8 | . . 8 Total Damage 119 | . . 119 Kills 1 | . . 1 Allies Corrupted . | . . . Allies Melted . | . . . Intel | -11 -10 -10 ------- Run | Yrd Mat Min Robot Analysis Total . | . . . Derelict Logs Recovered . | . . . Drone Launches . | . . . Drone Recoveries . | . . . Exploration | -11 -10 -10 ------------- Run | Yrd Mat Min Turns Passed 1844 | 81 1579 184 Spaces Moved 953 | 44 811 98 Core 3 | 3 . . Treads 947 | 41 811 95 Legs 3 | . . 3 Wheels . | . . . Hover . | . . . Flight . | . . . Fastest Speed 50 | 50 160 160 Average Speed 159 | 152 160 160 Slowest Speed 190 | 160 160 190 Overloaded Moves . | . . . Propulsion Burnouts . | . . . Robots Hopped . | . . . Cave-ins Triggered . | . . . Exploration Rate (%) 42 | 5 99 24 Regions Visited 2 Branch Regions 1 Pre-discovered Areas . | . . . Known Exits Taken . | . . . Unknown Exits Taken 2 | 1 1 . Scrap Searched 2 | . . 2 Spaces Dug . | . . . Terrain Destroyed . | . . . Melee . | . . . Projectile . | . . . AOE . | . . . Terrain Rammed . | . . . Walls Destroyed . | . . . Machines Disabled . | . . . Actions | -11 -10 -10 --------- Run | Yrd Mat Min Total 1154 | 54 989 111 Wait 94 | 1 93 . Move 951 | 43 810 98 Hop . | . . . Pick Up 14 | 3 10 1 Fast Attach 12 | 6 6 . Attach 4 | . 2 2 Detach 4 | . 4 . Swap 4 | . 3 1 Drop 5 | . 4 1 Fire 65 | . 57 8 Melee . | . . . Ram . | . . . Kick . | . . . Crush 1 | 1 . . Escape Stasis . | . . . Rewire . | . . . Trap . | . . . Miscellaneous . | . . . Route ------- -11/Scrapyard -10/Materials (discovered 4 exits: [*Mat x3] / [*Min]) -10/Mines History --------- Turn | Location | Event 19 | -11/Scrapyard | Discovered new exit (range 16) 82 | -11/Scrapyard | Entered Materials 311 | -10/Materials | Build established: Mutant 618 | -10/Materials | Discovered new exit (range 3) 707 | -10/Materials | Repaired Broken Lgt. Treads 735 | -10/Materials | Repaired Lgt. Armor Plating 852 | -10/Materials | Discovered new exit (range 12) 1073 | -10/Materials | Discovered new exit (range 10) 1254 | -10/Materials | Discovered new exit (range 7) 1661 | -10/Materials | Entered Mines 1668 | -10/Mines | Core integrity fell below 50% 1738 | -10/Mines | Assisted by bots powering up and referring to "LRC-V3" 1814 | -10/Mines | Assembled infested the area 1819 | -10/Mines | Assisted by a Guerilla fighting off Assembled 1840 | -10/Mines | Core integrity fell below 20% 1845 | -10/Mines | Destroyed by as-24484 with Assembled Rifle Last Messages --------------- 01823_ as-25184 destroyed. 01823_ as-57670 destroyed. 01828_ D-53 Grenadier destroyed. 01829_ as-08648 destroyed. 01832_ U-05 Engineer lays Concrete. 01833_ Lgt. Treads destroyed. 01833_ R-06 Scavenger collects Welding Torch. 01834_ U-05 Engineer lays Concrete. 01835_ Trooper 1a destroyed. 01835_ U-05 Engineer lays Concrete. 01836_ K-01 Serf collects debris. 01836_ U-05 Engineer lays Concrete. 01839_ The unstable cave ceiling collapses. 01839_ R-06 Scavenger destroyed. 01839_ K-01 Serf collects debris. 01839_ R-06 Scavenger collects Ion Engine. 01840_ D-53 Grenadier knocked back. 01840_ D-53 Grenadier destroyed. 01842_ K-01 Serf collects debris. 01842_ R-06 Scavenger collects Com. Wheel. Map ----- +----------------------------------------------------+ | ????????????????????????????????????????? | | ????????????????????????????????????????? | | ????????????????????????????????????????? | | ????????????????????????????????????????? | | ????????????????????????????????????????? | | ????????????????????????????????????????? | | ????????????????????????????????????????? | | ????????????????????????????????????????? | | ??????????????????????????????? ????????? | | ??????????????????????????????? ????????? | | ??????????????????????????????? ????????? | | ?????????????????????# ???????? ????????? | | ?????????????????????# ?????? ????????? | | ?????????????????????# ?????? #????????? | | ?????????????????????# ?????? #????????? | | ???????????????????### %##???? #????????? | | ???????????????????# ???? #????????? | | ??????????????????## #??? #????????? | | ?????????????????## ####a#????????? | | ?????????????????# #????????? | | ?????????????????# ##???????? | | ????????????????## #???????? | | ????????????????# ##??????? | | ????????????## # #??????? | | ?????????? ]%= a #??????? | | ?????????? % k]!= @ ##??????? | | ?????????????# %% = #??????? | | ##???????????## %## [%| ##??????? | | ###?????????#;# ??### %=! ##???????? | | ##??????????#????#####r* ##????????? | | ##??????????????#! %! #?????????? | | ! ##?????????????#%% #?????????? | | % #?????????????# ### #?????????? | | # #?????????????# #?## ##?????????? | | ?# ##???????#####?# #??####??????????? | | ??####????????# #?# #????##??????????? | | ???????????#### #?# ##### #??????????? | | ??????????## # #?# #??????????? | | ########### ### #??????????? | | ####??????????? | | ##?????????????? | | ############## #??????????????? | | ?????????????## #??????????????? | | ??????????????## #??????????????? | | ???????????????#### ####??????????????? | | ??????????????????#####?????????????????? | | ????????????????????????????????????????? | | ????????????????????????????????????????? | | ????????????????????????????????????????? | | ????????????????????????????????????????? | +----------------------------------------------------+ Best States ------------- Heat Dissipation 25 Energy Generation 10 Energy Capacity 250 Matter Stores 300 Matter Capacity 300 Sight Range 16 Terrain Scan Density 10 Armor Coverage 150 Evasion (%) 40 Recoil Reduction 2 Item Schematics ----------------- None Robot Schematics ------------------ None Fabricated ------------ Nothing Alien Tech Used ----------------- None Achievements -------------- None Challenges ------------ None Game ------ Seed VortexVariableRegenerator Manual? 0 Play Time 00:15:04 Cumulative 48.0 hours Start 2024.05.01 @ 17:00:17 End 2024.05.01 @ 17:20:16 Sessions 1 Manual Loads 0 Difficulty Rogue Special Mode None Game No. 73 Rogue 73 Adventurer 0 Explorer 0 Win Type - Total 0 Types 0/0/0/0/0/0/0/0/0 Lore% 25 Gallery% 33 Achievement% 27 Wizard Run 0 Options --------- Layout 1 ASCII 0 Keyboard 1 Movement Numpad Keybinds 0 Fullscreen 1 Font 24/Smallcaps Map View 50x35 Zoom Use 0% Tactical HUD 1 Map Filters NONE Filters NONE Steam 1 RUN: 9de021c4-1bc1-415e-abae-750b671d3a30